bitfinex/quotes_SOLUSD_20260109
["timestamp","ask_amount","ask_price","bid_price","bid_amount"]
[1767987677639,0.7013918,135.98,135.94,3.59920405]
[1767987678561,0.7013918,135.98,135.94,3.53920405]
[1767987678928,8.05564762,135.98,135.94,3.53920405]
[1767987679258,8.05564762,135.98,135.94,0.62453076]
[1767987679751,10.97032091,135.98,135.94,0.62453076]
[1767987683648,2.91467329,135.97,135.94,0.56453076]
[1767987683848,3.61606509,135.97,135.92,2.91467329]
[1767987684354,0.7013918,135.96,135.91,23.71224956]
[1767987684762,2.91467329,135.97,135.91,23.71224956]
[1767987685054,3.61606509,135.97,135.91,23.71224956]
[1767987685257,3.61606509,135.97,135.92,2.91467329]
[1767987685555,10.97103352,135.97,135.93,0.68453076]
[1767987689658,8.05668743,135.96,135.93,0.68453076]
[1767987693456,0.6924981,135.95,135.92,0.69161593]
[1767987694454,29.35022812,135.96,135.92,0.69161593]
[1767987694659,0.6924981,135.95,135.92,0.69161593]
[1767987694856,8.04843029,135.95,135.92,0.69161593]
[1767987698063,0.6924981,135.97,135.92,0.69161593]
[1767987698240,0.6924981,135.96,135.92,0.69161593]
[1767987699161,8.04814355,135.95,135.92,0.69161593]
[1767987704667,0.6924981,135.94,135.91,13.44]
[1767987704867,0.6924981,135.92,135.88,0.69161593]
[1767987705343,8.04987808,135.92,135.88,0.69161593]
[1767987705742,12.60092902,135.92,135.88,0.69161593]
[1767987705946,0.6924981,135.91,135.88,0.69161593]
[1767987707951,8.04987808,135.92,135.88,0.69161593]
[1767987708156,12.60092902,135.92,135.88,0.69161593]
[1767987709664,8.04987808,135.92,135.88,0.69161593]
[1767987709851,12.60092902,135.92,135.88,0.69161593]
[1767987710453,0.67827287,135.91,135.88,0.69161593]
[1767987713086,0.67827287,135.95,135.91,0.68246874]
[1767987713292,0.67827287,135.95,135.91,5.23351968]
[1767987713452,0.67827287,135.96,135.91,5.23351968]
[1767987714050,0.67827287,135.95,135.91,4.55105094]
[1767987714376,0.67827287,135.95,135.91,5.23351968]
[1767987714565,0.67827287,135.95,135.92,0.68246874]
[1767987715358,0.67827287,135.95,135.91,0.68246874]
[1767987715359,0.67827287,135.94,135.91,0.68246874]
[1767987719456,0.67827287,135.95,135.92,0.68246874]
[1767987720851,8.03395671,135.95,135.91,12.59120345]
[1767987721174,0.67827287,135.94,135.91,12.59120345]
[1767987721376,0.64827288,135.94,135.91,5.23351968]
[1767987722483,7.35672772,135.93,135.91,0.68246874]
[1767987722775,4.55105094,135.92,135.86,0.68246874]
[1767987722966,12.04958359,135.94,135.86,0.68246874]
[1767987722967,4.55105094,135.9,135.86,0.68246874]
[1767987723367,5.20764133,135.9,135.86,0.68246874]
[1767987723970,12.56606401,135.9,135.86,0.68246874]
[1767987724178,12.56563652,135.91,135.86,0.68246874]
[1767987724395,12.56563652,135.91,135.87,0.69363977]
[1767987725183,8.01404865,135.92,135.88,0.69363977]
[1767987725487,0.65659039,135.92,135.88,5.24469071]
[1767987725670,0.65659039,135.92,135.89,0.69363977]
[1767987726065,8.01346313,135.93,135.89,0.69363977]
[1767987726477,0.65659039,135.92,135.89,0.69363977]
[1767987726663,0.65659039,135.92,135.88,5.24469071]
[1767987728182,0.65659039,135.92,135.88,0.69363977]
[1767987728490,0.65659039,135.91,135.88,0.69363977]
[1767987728668,0.6265904,135.91,135.88,0.69363977]
[1767987729599,0.59659041,135.91,135.88,0.69363977]
[1767987730598,11.90844793,135.92,135.88,0.69363977]
[1767987731579,12.56503832,135.92,135.88,0.69363977]
[1767987732096,5.20764133,135.91,135.87,14.13363977]
[1767987732293,7.35739699,135.92,135.85,0.69363977]
[1767987732294,0.65659039,135.88,135.85,0.69363977]
[1767987732592,4.55105094,135.9,135.85,0.69363977]
[1767987734085,11.90959806,135.9,135.86,0.69363977]
[1767987734273,7.35854712,135.9,135.86,0.69363977]
[1767987734474,8.01513751,135.9,135.86,0.69363977]
[1767987736394,0.65659039,135.9,135.86,0.69363977]
[1767987736596,0.65659039,135.9,135.87,0.69363977]
[1767987742103,8.0152514,135.9,135.87,0.69363977]
[1767987742309,0.65659039,135.89,135.86,5.24469071]
[1767987742804,7.35866101,135.9,135.86,5.24469071]
[1767987743104,8.0152514,135.9,135.86,5.24469071]
[1767987743306,8.0152514,135.9,135.87,0.69363977]
[1767987745004,8.01575005,135.89,135.85,5.24469071]
[1767987745189,0.65659039,135.88,135.85,0.69363977]
[1767987749911,0.65659039,135.88,135.85,12.60574283]
[1767987750619,0.65659039,135.9,135.87,5.24469071]
[1767987751694,8.01443084,135.91,135.88,0.69363977]
[1767987752193,8.01443084,135.91,135.88,5.24469071]
[1767987752593,8.01443084,135.91,135.88,0.69363977]
[1767987752995,8.01443084,135.91,135.87,5.23319268]
[1767987753409,8.01443084,135.91,135.87,0.68214174]
[1767987753610,8.08041609,135.91,135.88,0.68214174]
[1767987754003,0.72257564,135.9,135.87,5.23319268]
[1767987757816,0.72257564,135.9,135.87,12.59314746]
[1767987758115,8.08041609,135.91,135.88,0.68214174]
[1767987758318,7.35751707,135.92,135.89,0.68214174]
[1767987758520,8.08009271,135.92,135.89,0.68214174]
[1767987759100,0.72257564,135.91,135.88,3.59598262]
[1767987761123,8.08040428,135.91,135.88,3.59598262]
[1767987762322,8.08040428,135.91,135.88,0.68214174]
[1767987766102,103.775,135.94,135.85,24.39677669]
[1767987766103,0.72257564,135.89,135.85,24.39677669]
[1767987766511,0.72257564,135.89,135.86,0.68214174]
[1767987767424,0.72257564,135.9,135.86,8.0426397]
[1767987768220,7.35810386,135.91,135.89,2.91384088]
[1767987768422,7.35810386,135.91,135.87,3.59598262]
[1767987768810,7.35810386,135.91,135.87,0.68214174]
[1767987769126,7.35810386,135.91,135.89,2.91384088]
[1767987769335,7.35810386,135.91,135.89,2.85384088]
[1767987769514,25.75262964,135.91,135.86,0.71328508]
[1767987769829,25.75262964,135.91,135.87,2.91384088]
[1767987771125,25.75262964,135.91,135.86,2.91384088]
[1767987771310,25.75262964,135.91,135.86,3.62712596]
[1767987772328,25.75262964,135.91,135.87,2.91384088]
[1767987772626,25.75262964,135.91,135.86,0.71328508]
[1767987773037,132.44147052,135.91,135.84,14.15328508]
[1767987773227,0.28432314,135.9,135.86,2.91384088]
[1767987774015,0.28432314,135.9,135.87,2.91384088]
[1767987774327,0.28432314,135.9,135.86,2.91384088]
[1767987775021,7.35889322,135.89,135.86,2.91384088]
[1767987776334,7.35889322,135.89,135.85,0.71328508]
[1767987776552,7.35889322,135.89,135.86,2.91384088]
[1767987777734,7.35889322,135.89,135.85,0.71328508]
[1767987777933,7.35889322,135.89,135.86,2.91384088]
[1767987780321,7.35889322,135.89,135.85,3.62712596]
[1767987782229,7.35889322,135.89,135.85,0.71328508]
[1767987782439,103.775,135.91,135.88,3.62712596]
[1767987782640,103.775,135.95,135.91,0.71328508]
[1767987782935,103.775,135.95,135.91,3.62712596]
[1767987783334,111.13086503,135.95,135.92,2.91384088]
[1767987783714,111.13086503,135.95,135.92,3.57545974]
[1767987783915,7.35586503,135.95,135.93,2.91384088]
[1767987784414,16.63816402,135.98,135.93,2.91384088]
[1767987784415,7.3545635,135.97,135.93,2.91384088]
[1767987784614,7.3545635,135.97,135.91,0.66161886]
[1767987784818,7.3545635,135.97,135.93,2.91384088]
[1767987785643,0.28432314,135.96,135.92,2.91384088]
[1767987785940,2.91384088,135.95,135.9,3.57545974]
[1767987786140,3.19816402,135.96,135.9,3.57545974]
[1767987786539,25.74475909,135.95,135.9,3.57545974]
[1767987788050,25.74475909,135.95,135.9,0.66161886]
[1767987788240,25.74475909,135.95,135.9,3.57545974]
[1767987789036,28.65859997,135.95,135.9,3.57545974]
[1767987789550,25.74475909,135.95,135.91,3.57545974]
[1767987792033,103.775,135.96,135.93,3.57545974]
[1767987792225,129.57804344,135.96,135.93,0.60161886]
[1767987794332,129.51804344,135.96,135.92,2.91384088]
[1767987794755,130.1796623,135.96,135.92,2.91384088]
[1767987795147,130.1796623,135.96,135.92,2.85384088]
[1767987795528,130.1796623,135.96,135.91,2.91384088]
[1767987796442,130.1796623,135.96,135.92,0.66161886]
[1767987796622,0.1584,135.95,135.91,2.91384088]
[1767987796826,0.1584,135.95,135.88,7.35927939]
[1767987796827,0.1584,135.95,135.9,2.91384088]
[1767987797843,0.65658667,135.93,135.9,2.91384088]
[1767987798161,0.65658667,135.93,135.89,2.91384088]
[1767987798344,0.65658667,135.93,135.88,2.91384088]
[1767987798531,0.65658667,135.93,135.89,3.57545974]
[1767987799538,0.65658667,135.93,135.89,0.66161886]
[1767987799733,7.35726898,135.92,135.89,0.66161886]
[1767987799935,0.65165463,135.91,135.88,0.66161886]
[1767987800452,29.36109992,135.92,135.88,0.66161886]
[1767987802447,26.44725904,135.92,135.88,0.66161886]
[1767987803635,0.69681761,135.94,135.9,0.66161886]
[1767987803957,0.69681761,135.94,135.9,2.91384088]
[1767987805647,7.35672772,135.93,135.9,2.91384088]
[1767987805840,7.35672772,135.93,135.9,3.57545974]
[1767987811937,7.35672772,135.93,135.91,0.66161886]
[1767987812437,8.05354533,135.93,135.89,0.66161886]
[1767987812665,8.05354533,135.93,135.89,3.57545974]
[1767987813964,8.05354533,135.93,135.9,0.68077564]
[1767987815058,0.68785673,135.92,135.89,0.68077564]
[1767987815243,0.68785673,135.92,135.88,3.59461652]
[1767987815645,0.68785673,135.92,135.88,0.68077564]
[1767987815843,0.68785673,135.92,135.87,3.59461652]
[1767987815844,0.68785673,135.91,135.87,3.59461652]
[1767987816556,0.68785673,135.9,135.86,0.68077564]
[1767987816759,0.68785673,135.9,135.86,3.59461652]
[1767987817262,7.35889322,135.89,135.86,3.59461652]
[1767987817649,7.35889322,135.89,135.87,2.91384088]
[1767987818545,7.35889322,135.89,135.87,4.55438494]
[1767987820169,8.04674995,135.89,135.86,0.68077564]
[1767987820549,8.04674995,135.89,135.87,4.55438494]
[1767987822762,8.04674995,135.89,135.87,5.23516058]
[1767987822961,7.35889322,135.89,135.87,5.23516058]
[1767987823263,8.04674995,135.89,135.87,4.55438494]
[1767987826968,8.01918278,135.89,135.87,4.55438494]
[1767987828286,8.01918278,135.89,135.86,5.23516058]
[1767987828791,8.01918278,135.89,135.86,0.68077564]
[1767987829153,8.01918278,135.89,135.86,5.23516058]
[1767987829795,8.01918278,135.89,135.86,0.68077564]
[1767987831390,0.69927098,135.88,135.84,5.21143908]
[1767987831997,8.05924742,135.87,135.84,5.21143908]
[1767987832864,8.05924742,135.87,135.84,0.65705414]
[1767987834383,8.05924742,135.87,135.84,5.21143908]
[1767987835781,8.05924742,135.87,135.84,0.65705414]
[1767987847876,0.70517624,135.89,135.85,0.67996102]
[1767987848080,0.70517624,135.88,135.85,0.67996102]
[1767987848291,0.70517624,135.86,135.83,0.67996102]
[1767987848594,0.70517624,135.87,135.84,0.67996102]
[1767987849173,0.70517624,135.87,135.84,5.23434596]
[1767987849371,0.70517624,135.87,135.85,0.67996102]
[1767987850475,8.06522974,135.87,135.85,0.67996102]
[1767987851088,104.48017624,135.9,135.87,0.67996102]
[1767987851287,7.35856346,135.9,135.88,0.67996102]
[1767987851483,8.0637397,135.9,135.88,0.67996102]
[1767987857484,8.0637397,135.9,135.88,0.61996102]
[1767987865694,8.0637397,135.9,135.88,0.55996102]
[1767987867205,8.0637397,135.9,135.88,5.11434596]
[1767987867206,7.35856346,135.9,135.88,5.11434596]
[1767987867880,7.35856346,135.9,135.88,0.55996102]
[1767987868086,7.35856346,135.9,135.88,0.49996102]
[1767987868506,7.35856346,135.9,135.88,0.43996102]
[1767987869104,0.70517624,135.9,135.88,0.43996102]
[1767987869506,0.70517624,135.91,135.88,4.99434596]
[1767987870510,8.06244522,135.92,135.9,0.67996102]
[1767987870808,8.06244522,135.92,135.89,4.55438494]
[1767987872112,8.06244522,135.92,135.86,7.36023828]
[1767987872316,0.70517624,135.91,135.88,4.55438494]
[1767987872492,8.06325749,135.91,135.88,4.55438494]
[1767987872693,8.06325749,135.91,135.89,0.67996102]
[1767987872892,8.06325749,135.91,135.89,0.55996102]
[1767987873295,8.06325749,135.91,135.89,0.49996102]
[1767987873893,8.06325749,135.91,135.88,4.55438494]
[1767987874099,8.06325749,135.91,135.87,4.55438494]
[1767987875019,0.67410612,135.9,135.87,4.55438494]
[1767987875406,0.67410612,135.9,135.87,5.22343464]
[1767987876018,0.67410612,135.9,135.88,0.6690497]
[1767987876317,0.67410612,135.9,135.87,5.22343464]
[1767987877119,8.03257582,135.9,135.87,5.22343464]
[1767987877520,8.03257582,135.9,135.88,0.6690497]
[1767987877817,0.67410612,135.88,135.81,4.75438494]
[1767987878132,0.67410612,135.84,135.81,0.2]
[1767987879823,8.03620382,135.84,135.81,0.2]
[1767987881020,8.03620382,135.84,135.81,0.8690497]
[1767987881223,0.67410612,135.82,135.81,1e-08]
[1767987881523,0.67410612,135.81,135.79,0.2]
[1767987882198,7.36377025,135.8,135.79,0.2]
[1767987882398,8.03787637,135.8,135.79,0.2]
[1767987882600,7.36377025,135.8,135.79,0.2]
[1767987884011,8.03787637,135.8,135.79,1e-08]
[1767987885106,0.67410612,135.79,135.77,1e-08]
[1767987887633,7.36485491,135.78,135.77,1e-08]
[1767987889461,8.07099268,135.78,135.77,1e-08]
[1767987891636,7.36485491,135.78,135.77,1e-08]
[1767987892003,7.3644909,135.79,135.77,0.69097142]
[1767987892210,7.36401138,135.8,135.78,0.69097141]
[1767987892630,8.06948274,135.81,135.78,3.6086157]
[1767987892937,8.06950842,135.81,135.78,0.69097141]
[1767987893120,8.06950842,135.81,135.78,3.6086157]
[1767987893521,0.67613778,135.8,135.78,2.91764429]
[1767987893713,0.64613779,135.8,135.78,2.91764429]
[1767987896130,0.70613777,135.81,135.78,3.6086157]
[1767987896833,0.70613777,135.8,135.77,1e-08]
[1767987897208,0.70613777,135.81,135.77,3.60861571]
[1767987897728,26.47553843,135.82,135.79,0.69097141]
[1767987897917,26.47553843,135.82,135.79,3.6086157]
[1767987897918,8.06882367,135.82,135.79,3.6086157]
[1767987900718,8.06882367,135.82,135.79,0.69097141]
[1767987900919,0.70613777,135.81,135.78,0.69097141]
[1767987901521,0.70613777,135.81,135.77,5.00861571]
[1767987901929,0.70613777,135.81,135.77,2.09097142]
[1767987902252,0.70613777,135.79,135.77,1e-08]
[1767987902742,8.07099268,135.78,135.77,1e-08]
[1767987903449,0.70613777,135.78,135.77,1e-08]
[1767987904435,0.70613777,135.78,135.76,1e-08]
[1767987904844,8.03516441,135.77,135.76,1e-08]
[1767987906538,0.66976705,135.79,135.76,3.57751234]
[1767987906838,8.03253177,135.82,135.79,0.65986804]
[1767987907033,0.66976705,135.81,135.78,0.65986804]
[1767987907241,0.66976705,135.81,135.78,3.57751233]
[1767987908940,8.03331208,135.81,135.78,0.65986804]
[1767987913441,0.66976705,135.8,135.77,2.05986804]
[1767987914342,117.49932314,135.85,135.77,2.05986804]
[1767987914343,0.66976705,135.83,135.8,0.65986804]
[1767987914535,0.66976705,135.83,135.8,3.57751233]
[1767987914960,0.66976705,135.83,135.8,0.65986804]
[1767987915127,0.66976705,135.84,135.81,3.57751233]
[1767987915726,7.36077415,135.86,135.83,3.57751233]
[1767987915948,8.0305412,135.86,135.82,2.91764429]
[1767987916255,0.66976705,135.85,135.82,3.57751233]
[1767987916835,8.03084139,135.85,135.82,3.57751233]
[1767987917150,0.66976705,135.84,135.81,0.65986804]
[1767987917648,0.66976705,135.84,135.8,0.65986804]
[1767987918554,0.66976705,135.84,135.8,3.57751233]
[1767987919051,7.36214385,135.83,135.8,3.57751233]
[1767987919255,0.66976705,135.82,135.78,17.01751233]
[1767987919445,0.66976705,135.79,135.76,0.65986805]
[1767987919644,0.63976706,135.79,135.77,0.7]
[1767987919847,2.91764429,135.79,135.76,1e-08]
[1767987920044,2.91764429,135.78,135.76,1e-08]
[1767987921856,7.36539736,135.77,135.76,1e-08]
[1767987923255,8.03516441,135.77,135.76,1e-08]
[1767987926166,7.36505212,135.78,135.76,0.65986805]
[1767987926965,7.36505212,135.78,135.76,1e-08]
[1767987928451,7.36448993,135.79,135.76,0.65986805]
[1767987929072,0.66976705,135.8,135.77,0.65986804]
[1767987929073,8.03375359,135.8,135.77,0.65986804]
[1767987929746,8.03375359,135.8,135.76,3.57751234]
[1767987930149,0.66976705,135.79,135.76,1e-08]
[1767987930351,8.03462196,135.78,135.76,1e-08]
[1767987932867,0.70094381,135.77,135.76,1e-08]
[1767987935569,7.36453265,135.79,135.76,0.68319183]
[1767987935775,8.06424263,135.81,135.78,0.68319182]
[1767987936570,8.06424263,135.81,135.77,3.60083611]
[1767987937173,7.36329882,135.81,135.78,0.68319182]
[1767987937354,0.28432314,135.84,135.76,21.06555914]
[1767987937355,7.36285295,135.82,135.8,0.68319182]
[1767987938376,7.36214385,135.83,135.8,0.68319182]
[1767987939172,7.36177184,135.84,135.81,0.68319182]
[1767987941265,8.0621573,135.85,135.81,0.68319182]
[1767987942769,7.36078239,135.86,135.82,0.68319182]
[1767987942968,8.0617262,135.86,135.82,0.68319182]
[1767987944977,8.0617262,135.86,135.83,0.68319182]
[1767987945156,0.70094381,135.88,135.84,0.68319182]
[1767987945356,0.70094381,135.9,135.87,0.68319182]
[1767987945693,8.0589537,135.91,135.87,5.18220508]
[1767987945889,8.0589537,135.91,135.87,0.62319182]
[1767987946257,8.0589537,135.91,135.87,4.55901326]
[1767987946780,0.70094381,135.9,135.84,7.3615365]
[1767987946970,0.70094381,135.89,135.84,11.92054976]
[1767987947160,0.70094381,135.89,135.84,25.36054976]
[1767987947580,0.70094381,135.89,135.85,5.24220508]
[1767987948259,8.06032748,135.89,135.85,0.68319182]
[1767987948868,8.06032748,135.89,135.85,1.38319182]
[1767987949177,8.06032748,135.89,135.86,0.67348271]
[1767987953165,8.06032748,135.89,135.86,0.61348271]
[1767987956194,8.06032748,135.89,135.85,1.37348271]
[1767987956378,8.06032748,135.89,135.85,5.93249597]
[1767987956697,7.35938367,135.89,135.86,0.67348271]
[1767987957192,8.05894857,135.89,135.86,0.67348271]
[1767987958699,7.35946413,135.88,135.85,0.7]
[1767987958879,8.05902903,135.88,135.85,1.37348271]
[1767987959271,12.61804229,135.88,135.85,1.37348271]
[1767987959989,12.61804229,135.88,135.85,0.7]
[1767987960189,12.61804229,135.88,135.85,0.64000009]
[1767987960387,31.01662927,135.88,135.85,0.58000009]
[1767987960614,5.25857816,135.86,135.83,0.67348271]
[1767987960769,7.36105999,135.85,135.83,0.67348271]
[1767987962303,0.6995649,135.86,135.83,0.67348271]
[1767987962304,7.36072833,135.86,135.83,0.67348271]
[1767987962601,7.36072833,135.86,135.84,0.67348271]
[1767987962800,7.35997644,135.87,135.84,0.67348271]
[1767987965995,0.67115163,135.87,135.84,0.67348271]
[1767987966199,26.42961031,135.88,135.84,0.67348271]
[1767987967180,0.67115163,135.87,135.84,0.67348271]
[1767987968301,8.03163372,135.87,135.84,0.67348271]
[1767987969574,0.67115163,135.87,135.84,0.67348271]
[1767987969781,7.3583181,135.91,135.87,0.66763547]
[1767987969981,8.02946973,135.91,135.87,5.22664873]
[1767987970194,8.02987166,135.9,135.87,5.22664873]
[1767987970500,8.02987166,135.9,135.88,4.55901326]
[1767987970704,7.35872003,135.9,135.88,4.49901326]
[1767987971007,18.49372485,135.92,135.89,5.22664873]
[1767987971008,0.1,135.92,135.89,5.22664873]
[1767987971179,0.1,135.92,135.9,5.22664873]
[1767987971502,0.1,135.92,135.9,4.55901326]
[1767987971886,0.1,135.92,135.91,4.55901326]
[1767987972481,8.12681387,135.95,135.91,4.55901326]
[1767987973405,0.77115163,135.95,135.92,5.22664873]
[1767987973915,0.67115163,135.99,135.95,0.66763547]
[1767987974085,0.67115163,135.99,135.95,0.63995684]
[1767987974285,0.67115163,135.98,135.95,0.63995684]
[1767987974813,0.67115163,135.98,135.94,4.55901326]
[1767987975206,0.67115163,135.98,135.93,7.35670788]
[1767987975403,8.02532096,135.98,135.94,4.55901326]
[1767987976110,8.02532096,135.98,135.94,5.22664873]
[1767987976809,8.02532096,135.98,135.95,0.66763547]
[1767987977397,8.02532096,135.98,135.94,5.22664873]
[1767987978214,8.02532096,135.98,135.95,0.66763547]
[1767987978598,8.02464184,135.99,135.95,0.66763547]
[1767987978905,7.35349021,135.99,135.96,0.66763547]
[1767987979103,8.02429385,136.0,135.96,5.16111639]
[1767987979288,0.67115163,136.01,135.97,4.55901326]
[1767987979486,0.67115163,136.01,135.97,4.49901326]
[1767987980321,0.67115163,136.0,135.95,4.55901326]
[1767987980994,0.67115163,136.0,135.96,4.55901326]
[1767987981822,0.67115163,136.0,135.95,0.66763547]
[1767987982121,0.67115163,136.0,135.96,4.55901326]
[1767987982320,8.0246335,135.99,135.96,4.55901326]
[1767987982816,0.67115163,135.98,135.95,5.22664873]
[1767987983226,0.67115163,135.98,135.95,0.66763547]
[1767987983623,0.67115163,135.98,135.95,5.22664873]
[1767987984414,7.35348187,135.99,135.96,4.55901326]
[1767987984717,0.67115163,135.99,135.96,4.55901326]
[1767987985826,8.02486848,135.99,135.96,4.55901326]
[1767987986126,0.67115163,135.98,135.96,4.55901326]
[1767987987022,0.67115163,135.98,135.95,0.66763547]
[1767987987199,0.67115163,135.98,135.96,4.55901326]
[1767987987709,0.67115163,135.98,135.95,0.66763547]
[1767987987916,0.67115163,135.98,135.96,4.55901326]
[1767987989729,8.02486848,135.99,135.96,4.55901326]
[1767987992632,103.775,136.02,135.99,0.66763547]
[1767987992633,104.44615163,136.02,135.99,0.66763547]
[1767987992808,0.67115163,136.02,135.99,4.55901326]
[1767987993122,8.02324307,136.02,135.99,4.55901326]
[1767987993624,0.70012617,136.01,135.99,4.55901326]
[1767987994918,8.05221761,136.02,135.99,4.55901326]
[1767987995712,0.70012617,136.01,135.99,4.55901326]
[1767987997429,8.15144573,136.03,136.0,4.55901326]
[1767987997633,0.80012617,136.03,136.0,4.55901326]
[1767987998329,0.80012617,136.03,136.01,4.55901326]
[1767987998821,0.1,136.03,136.0,0.66916564]
[1767987999018,0.1,136.03,136.02,4.55901326]
[1767987999225,0.1,136.03,136.0,0.66916564]
[1767987999419,0.1,136.03,136.02,4.55901326]
[1767987999814,0.1,136.04,136.02,4.55901326]
[1767988000021,0.1,136.04,136.03,4.55901326]
[1767988000536,0.1,136.04,136.03,2.90780577]
[1767988002640,0.1,136.04,136.03,2.84780577]
[1767988002839,0.80012617,136.04,136.0,0.66916564]
[1767988003029,0.80012617,136.04,136.0,2.90780577]
[1767988003931,0.80012617,136.04,136.01,2.90780577]
[1767988004143,0.80012617,136.04,136.02,2.90780577]
[1767988004525,0.1,136.04,136.03,2.90780577]
[1767988005923,0.1,136.04,136.02,2.90780577]
[1767988008339,0.1,136.04,136.0,16.32780577]
[1767988008340,0.80012617,136.04,136.0,16.32780577]
[1767988009043,8.15098702,136.04,136.0,17.01387657]
[1767988009340,0.68887276,136.03,136.0,2.90780577]
[1767988009537,0.68887276,136.03,135.99,3.59387657]
[1767988009742,0.68887276,136.03,136.0,2.90780577]
[1767988011042,8.04051012,136.03,136.0,2.90780577]
[1767988011245,0.68887276,136.03,136.0,2.90780577]
[1767988011622,0.1,136.04,136.02,2.90780577]
[1767988011926,0.1,136.04,136.02,3.59387657]
[1767988012147,0.1,136.04,136.02,2.90780577]
[1767988012541,0.78887276,136.05,136.03,2.90780577]
[1767988012936,0.68887276,136.04,136.03,1.51021964]
[1767988013144,0.1,136.05,136.03,1.51021964]
[1767988013326,0.1,136.05,136.04,2.90780577]
[1767988013531,0.2,136.06,136.04,2.90780577]
[1767988013835,0.2,136.08,136.07,2.46203213]
[1767988014043,7.4475869,136.1,136.07,2.90780577]
[1767988014237,7.4475869,136.1,136.04,0.6860708]
[1767988014238,2.90780577,136.08,136.04,0.6860708]
[1767988014642,2.90780577,136.09,136.04,0.6860708]
[1767988014959,10.25696429,136.07,136.02,3.59387657]
[1767988015152,4.04560286,136.06,136.0,17.01387657]
[1767988015458,6.95340863,136.06,136.01,3.59387657]
[1767988015655,2.90780577,136.06,136.01,3.59387657]
[1767988016153,4.04790446,136.05,136.01,3.59387657]
[1767988016353,4.04790446,136.05,136.01,0.6860708]
[1767988016561,6.95571023,136.05,136.01,0.6860708]
[1767988016742,25.72205482,136.07,136.01,0.6860708]
[1767988017055,10.25856323,136.05,136.01,0.6860708]
[1767988017455,10.25856323,136.05,136.0,14.1060708]
[1767988017456,2.90780577,136.04,136.0,14.1060708]
[1767988018059,28.63416043,136.05,136.01,0.6860708]
[1767988018238,4.04505806,136.04,136.01,0.6860708]
[1767988018635,25.72635466,136.05,136.01,0.6860708]
[1767988020445,28.63416043,136.05,136.01,0.6860708]
[1767988021053,6.95103533,136.04,136.01,0.6860708]
[1767988021249,7.35075746,136.05,136.01,0.6860708]
[1767988021451,7.35075746,136.05,136.02,0.6860708]
[1767988023069,2.90780577,136.06,136.02,0.6860708]
[1767988023762,4.06852059,136.05,136.02,0.6860708]
[1767988024773,132.40569656,136.07,136.02,0.6860708]
[1767988024969,4.07016342,136.06,136.02,0.6860708]
[1767988025266,4.07016342,136.06,136.03,0.67730632]
[1767988025467,103.775,136.07,136.04,0.67730632]
[1767988025672,7.34970268,136.06,136.04,0.67730632]
[1767988025859,7.34970268,136.06,136.03,0.67730632]
[1767988026658,25.72394933,136.06,136.0,0.67730632]
[1767988026862,2.90780577,136.02,135.98,0.67730632]
[1767988027479,2.90780577,136.02,135.99,0.67730632]
[1767988027767,10.25970021,136.02,135.99,0.67730632]
[1767988028180,7.35189444,136.02,135.99,0.67730632]
[1767988028467,2.90780577,136.04,136.0,0.67730632]
[1767988028652,4.03036415,136.03,136.0,0.67730632]
[1767988028848,2.90780577,136.04,136.0,0.67730632]
[1767988029071,6.94394899,136.03,136.0,0.67730632]
[1767988029270,10.2594411,136.03,136.0,0.67730632]
[1767988030246,10.2594411,136.03,135.98,0.67730632]
[1767988030470,4.02127371,136.02,135.98,0.67730632]
[1767988030978,10.2594411,136.03,135.99,0.67730632]
[1767988031274,14.2793969,136.02,135.99,0.67730632]
[1767988031466,10.26013702,136.02,135.99,0.67730632]
[1767988032252,7.35233125,136.02,135.99,0.67730632]
[1767988033662,4.01690376,136.01,135.98,0.67730632]
[1767988036276,11.36932648,136.01,135.98,0.67730632]
[1767988036478,7.35242272,136.01,135.98,0.67730632]
[1767988038680,25.72961846,136.03,135.98,0.67730632]
[1767988038981,4.01880422,136.02,135.98,0.67730632]
[1767988039182,6.92660999,136.02,135.98,0.67730632]
[1767988039361,4.01880422,136.01,135.98,0.67730632]
[1767988039556,4.01880422,136.0,135.98,0.67730632]
[1767988039762,2.90780577,136.02,135.98,0.67730632]
[1767988039962,3.97147092,136.01,135.98,0.67730632]
[1767988040360,6.87927669,136.01,135.98,0.67730632]
[1767988040662,2.90780577,136.01,135.98,0.67730632]
[1767988040879,7.35274148,136.01,135.98,0.67730632]
[1767988041661,3.97154827,136.0,135.98,0.67730632]
[1767988046087,7.35274148,136.01,135.98,0.67730632]
[1767988046786,7.35274148,136.01,135.97,2.90780577]
[1767988046787,6.88037345,136.0,135.97,0.67730632]
[1767988046971,2.90780577,136.0,135.97,0.67730632]
[1767988047175,2.90780577,136.01,135.97,0.67730632]
[1767988047369,3.96657315,136.0,135.97,0.67730632]
[1767988047889,2.90780577,136.01,135.97,0.67730632]
[1767988048096,2.90780577,136.02,135.97,2.90780577]
[1767988048267,3.9689834,136.01,135.98,0.67730632]
[1767988049174,2.90780577,136.02,135.98,0.67730632]
[1767988049370,25.72961846,136.03,135.99,0.67730632]
[1767988049568,3.99038769,136.02,136.0,0.67730632]
[1767988049976,111.12599076,136.04,136.01,0.67730632]